fUSD/lending_fUSD_20260108
["ID","MTS","AMOUNT","RATE_DAILY","PERIOD"]
[400844108,1767843046190,-500.0,0.00017999,2]
[400844110,1767843046199,-500.0,0.00017999,2]
[400844112,1767843046207,-500.0,0.00017999,2]
[400844114,1767843046216,-500.0,0.00017999,2]
[400844116,1767843046226,-363.73176274,0.00017999,2]
[400844118,1767843046236,-300.0,0.00017999,2]
[400844120,1767843046245,-666.0,0.00017999,2]
[400844122,1767843046254,-300.0,0.00017999,2]
[400844124,1767843046263,-5970.77362135,0.00017999,2]
[400844126,1767843046272,-1755.93468828,0.00017999,2]
[400844128,1767843046283,-154.67877044,0.00018,2]
[400844130,1767843046292,-393077.33011533,0.00018,2]
[400844132,1767843046302,-660447.58130632,0.00018,2]
[400844134,1767843046310,-7052.45701652,0.00018,2]
[400844136,1767843046319,-105370.64318368,0.00018,2]
[400844138,1767843046328,-2085818.85203675,0.00018,2]
[400844199,1767843047038,-2047.57159741,0.00018,2]
[400844216,1767843047278,-1297.89441317,0.00018,2]
[400844218,1767843047290,-1516.79057988,0.00018,2]
[400844220,1767843047300,-315.32000001,0.00018,2]
[400844222,1767843047313,-1729.9999,0.00018,2]
[400844225,1767843047329,-4081757.36259488,0.00018,2]
[400844227,1767843047341,-1649.6059058,0.00018,2]
[400844231,1767843047363,-843.40981153,0.00018,2]
[400844357,1767843048611,-1.7e-07,0.00018,2]
[400844359,1767843048623,-400.88155885,0.00018,2]
[400844361,1767843048635,-395.92311807,0.00018,2]
[400844396,1767843048965,-715.55932488,0.00014334,2]
[400844422,1767843049222,-357.55217006,0.00012551,2]
[400844442,1767843049402,-84.47008999,0.00012551,2]
[400844444,1767843049413,-880.64527935,0.00014334,2]
[400844447,1767843049430,-5741.350374,0.00014334,2]
[400847094,1767843077195,2305.18612038,0.000328,120]
[400847262,1767843109123,-442.02226005,0.00012551,2]
[400847266,1767843124599,-300.0,0.00012623,2]
[400847267,1767843124627,-250.0,0.00012694,2]
[400847268,1767843124692,-8900.01,0.00012813,2]
[400847269,1767843124779,-10000.01,0.00012813,2]
[400847270,1767843124875,-4572.266727,0.00012813,2]
[400847290,1767843142831,339.96644,0.0001275,2]
[400847291,1767843170722,-4109.4312,0.00012814,2]
[400847292,1767843170803,-1441.18116,0.00012814,2]
[400847293,1767843170951,-10000.01,0.00012814,2]
[400847294,1767843171050,-10000.01,0.00012814,2]
[400847295,1767843171190,-10000.01,0.00012814,2]
[400847296,1767843171308,-10000.01,0.00012814,2]
[400847297,1767843171411,-10000.01,0.00012814,2]
[400847308,1767843176966,-10000.01,0.00012696,2]
[400847309,1767843177307,-10000.01,0.00012696,2]
[400847310,1767843177491,-10000.01,0.00012696,2]
[400847311,1767843177699,-10000.01,0.00012696,2]
[400847312,1767843177930,-10000.01,0.00012696,2]
[400847313,1767843179648,-10000.01,0.00012696,2]
[400847425,1767843282662,-10929.115671,0.0001255,2]
[400847426,1767843282687,-331.51669509,0.00012614,2]
[400847427,1767843282710,-300.0,0.00012695,2]
[400847428,1767843282741,-150.0,0.00012695,2]
[400847429,1767843282785,-300.0,0.00012695,2]
[400847430,1767843282830,-7989.36763391,0.00012696,2]
[400847431,1767843285357,999.0,0.00014166,3]
[400847432,1767843344255,922.0,0.00015,10]
[400847491,1767843787575,-729.483662,0.00012083,2]
[400847492,1767843787602,-250.0,0.00012114,2]
[400847493,1767843787624,-496.74189984,0.00012144,2]
[400847501,1767843862386,-72.68810016,0.00012144,2]
[400847502,1767843862408,-201.03910892,0.00012213,2]
[400847503,1767843869345,360.63,0.00032877,120]
[400847511,1767843908158,-190.29659076,0.00011804,2]
[400847512,1767843909772,-499.0217169,0.00011804,2]
[400847513,1767843911323,-205.27058711,0.00011804,2]
[400847514,1767843916464,-382.35510907,0.00011804,2]
[400847515,1767843919410,-452.27880143,0.00011804,2]
[400847516,1767843920794,-500.0,0.00011804,2]
[400847517,1767843922810,-199.80783017,0.00011804,2]
[400847518,1767843926037,-274.16345229,0.00011804,2]
[400847519,1767843927494,-442.21273673,0.00011804,2]
[400847520,1767843930146,-210.73445015,0.00011804,2]
[400847521,1767843932614,-500.0,0.00011804,2]
[400847522,1767843935630,-305.52403129,0.00011804,2]
[400847523,1767843937141,-305.44719933,0.00011804,2]
[400847524,1767843940812,-300.93263813,0.00011804,2]
[400847530,1767843941856,-250.0,0.00011804,2]
[400847531,1767843944653,-161.1,0.00011804,2]
[400847532,1767843947897,-200.0,0.00011804,2]
[400847533,1767843949597,-345.15939816,0.00011804,2]
[400847534,1767843953467,-500.0,0.00011804,2]
[400847535,1767843954935,-205.90101924,0.00011804,2]
[400847536,1767843956492,-282.7774489,0.00011804,2]
[400847537,1767843958698,-163.01688665,0.00011804,2]
[400847538,1767843962954,-310.10312473,0.00011804,2]
[400847539,1767843964466,-356.66185142,0.00011804,2]
[400847544,1767843966604,-188.86471918,0.00011804,2]
[400847552,1767843969889,-316.66,0.00011804,2]
[400847555,1767843972493,-152.90274074,0.00011804,2]
[400847556,1767843975635,-161.41992823,0.00011804,2]
[400847557,1767843977735,-281.27730079,0.00011804,2]
[400847558,1767843978129,215.6096278,0.00032877,120]
[400847559,1767843980360,-300.0,0.00011804,2]
[400847560,1767843981830,-168.55203038,0.00011804,2]
[400847561,1767843983853,-303.91570653,0.00011804,2]
[400847570,1767843987605,-300.0,0.00011804,2]
[400847576,1767843990297,-152.90274,0.00011745,2]
[400847577,1767843990322,-4.05195059,0.00011804,2]
[400847578,1767843991814,-322.16513308,0.00011804,2]
[400847580,1767843994282,-168.91999983,0.00011803,2]
[400847581,1767843996958,-252.63603701,0.00011803,2]
[400847582,1767843999519,-50.41951257,0.00011803,2]
[400847583,1767843999543,-116.45027343,0.00011804,2]
[400847584,1767844001649,-206.13,0.00011659,2]
[400847585,1767844001672,-118.98128919,0.00011804,2]
[400847586,1767844002985,-199.48883797,0.00011804,2]
[400847587,1767844007808,-252.70396908,0.00011804,2]
[400847588,1767844009030,-303.73131223,0.00011804,2]
[400847589,1767844011990,-210.22252446,0.00011671,2]
[400847590,1767844013550,-181.83775549,0.00011671,2]
[400847591,1767844020037,-263.2098759,0.00011671,2]
[400847592,1767844021618,-406.03393071,0.00011671,2]
[400847593,1767844023154,-407.47958521,0.00011671,2]
[400847594,1767844024694,-181.83775549,0.00011671,2]
[400847595,1767844026329,-250.0,0.00011671,2]
[400847605,1767844029831,-195.0,0.00011671,2]
[400847606,1767844030834,-60.96857274,0.00011671,2]
[400847607,1767844030859,-140.35507816,0.00011804,2]
[400847608,1767844032247,-541.52721557,0.00011804,2]
[400847609,1767844035046,-250.0,0.00011804,2]
[400847610,1767844037460,-157.47850945,0.00011804,2]
[400847611,1767844039123,-300.0,0.00011804,2]
[400847641,1767844041299,-200.0,0.00011804,2]
[400847655,1767844045454,-187.54007036,0.00011804,2]
[400847656,1767844050009,-257.47850945,0.00011804,2]
[400847657,1767844051614,-162.41020136,0.00011804,2]
[400847658,1767844053167,-192.52149055,0.00011804,2]
[400847659,1767844057244,-350.83942694,0.00011804,2]
[400847661,1767844059926,-174.55203038,0.00011804,2]
[400847662,1767844062498,-223.17976151,0.00011804,2]
[400847663,1767844063614,-230.60854268,0.00011804,2]
[400847685,1767844066800,-288.11984291,0.00011804,2]
[400847706,1767844068862,-293.25580285,0.00011804,2]
[400847707,1767844071229,-428.87479585,0.00011804,2]
[400847708,1767844073913,-198.37055173,0.00011804,2]
[400847709,1767844077091,-294.78439273,0.00011804,2]
[400847710,1767844078852,-315.92294073,0.00011804,2]
[400847711,1767844080999,-275.79732422,0.00011804,2]
[400847714,1767844084678,-1117.10427879,0.00011804,2]
[400847715,1767844087961,-539.10564219,0.00011804,2]
[400847716,1767844089615,-184.91068569,0.00011804,2]
[400847717,1767844093122,-275.27310149,0.00011804,2]
[400847718,1767844095760,-300.0,0.00011804,2]
[400847719,1767844098407,-200.0,0.00011804,2]
[400847720,1767844099996,-181.76114988,0.00011804,2]
[400847721,1767844101572,-205.92016426,0.00011804,2]
[400847722,1767844103632,-191.90720398,0.00011804,2]
[400847723,1767844106825,-392.91108228,0.00011804,2]
[400847724,1767844108938,-293.22581473,0.00011804,2]
[400847725,1767844112130,-165.97827688,0.00011804,2]
[400847727,1767844114166,-189.83615086,0.00011623,2]
[400847728,1767844115722,-103.34384914,0.00011623,2]
[400847729,1767844115744,-242.10266155,0.00011804,2]
[400847734,1767844120022,-271.27599792,0.00011804,2]
[400847739,1767844123100,-211.87054949,0.00011804,2]
[400847740,1767844125794,-186.65484852,0.00011804,2]
[400847741,1767844129850,-178.97681573,0.00011804,2]
[400847742,1767844134225,-162.11424412,0.00011804,2]
[400847743,1767844135800,-241.81785238,0.00011804,2]
[400847744,1767844137423,-305.6613102,0.00011804,2]
[400847745,1767844139678,-432.31220446,0.00011804,2]
[400847746,1767844142516,-368.49819318,0.00011804,2]
[400847748,1767844146145,-195.69246571,0.00011804,2]
[400847750,1767844149248,-332.22444568,0.00011804,2]
[400847752,1767844151388,-168.05451932,0.00011804,2]
[400847753,1767844152892,-283.46910398,0.00011804,2]
[400847755,1767844155062,-214.34140696,0.00011804,2]
[400847756,1767844157030,-479.42632757,0.00011804,2]
[400847757,1767844159127,-476.34437971,0.00011804,2]
[400847760,1767844161296,-469.68851358,0.00011804,2]
[400847761,1767844165586,-300.0,0.00011804,2]
[400847762,1767844167668,-292.83246587,0.00011804,2]
[400847763,1767844170297,-262.78607824,0.00011804,2]
[400847764,1767844172124,-254.79681484,0.00011804,2]
[400847765,1767844173743,-416.43125076,0.00011804,2]
[400847766,1767844175828,-189.6333978,0.00011804,2]
[400847767,1767844179659,-301.88640204,0.00011804,2]
[400847768,1767844181760,-188.929543,0.00011804,2]
[400847769,1767844183904,-167.77555432,0.00011804,2]
[400847770,1767844184922,-500.0,0.00011804,2]
[400847771,1767844186510,-256.2808779,0.00011804,2]
[400847772,1767844188618,-300.0,0.00011804,2]
[400847778,1767844194592,-198.00530647,0.00011804,2]
[400847779,1767844196205,-165.54,0.00011804,2]
[400847780,1767844197613,-203.09776476,0.00011804,2]
[400847781,1767844199182,-250.0,0.00011804,2]
[400847782,1767844201379,-211.34,0.00011803,2]
[400847784,1767844202588,-88.66,0.00011803,2]
[400847785,1767844202619,-300.0,0.00011803,2]
[400847787,1767844202650,-254.0,0.00011803,2]
[400847788,1767844202681,-1200.0,0.00011803,2]
[400847789,1767844202702,-88.66,0.00011804,2]
[400847790,1767844202713,-300.0,0.00011804,2]
[400847791,1767844202724,-254.0,0.00011804,2]
[400847792,1767844202738,-1200.0,0.00011804,2]
[400847793,1767844202749,-6314.69,0.00011804,2]
[400847795,1767844203505,-250.0,0.00011804,2]
[400847796,1767844205628,-247.0,0.00011804,2]
[400847797,1767844205655,-40.25604664,0.00011804,2]
[400847808,1767844208974,-8157.35,0.00011804,2]
[400847854,1767844211126,-266.9860136,0.00011804,2]
[400847873,1767844213283,-236.09533642,0.00011804,2]
[400847874,1767844216404,-350.2661318,0.00011804,2]
[400847876,1767844218532,-200.0,0.00011804,2]
[400847878,1767844221811,-200.0,0.00011745,2]
[400847880,1767844223828,-372.34501122,0.00011745,2]
[400847885,1767844225850,-166.66,0.00011745,2]
[400847920,1767844230706,-226.05225167,0.00011745,2]
[400847930,1767844231639,-836.27719211,0.00011745,2]
[400847931,1767844231648,-3036.51457773,0.00011804,2]
[400847932,1767844231659,-676.92004919,0.00011804,2]
[400847933,1767844231671,-5309.32659708,0.00011804,2]
[400847934,1767844231680,-176.60518223,0.00012112,2]
[400847935,1767844231689,-1000.0,0.00012212,2]
[400847936,1767844231699,-500.0,0.00012366,2]
[400847937,1767844231710,-150.0,0.00012366,2]
[400847938,1767844231720,-703.21093745,0.00012366,2]
[400847939,1767844231754,-231.78906255,0.00012366,2]
[400847940,1767844231763,-500.0,0.00012366,2]
[400847941,1767844231777,-500.0,0.00012366,2]
[400847942,1767844231787,-150.0,0.00012366,2]
[400847943,1767844231796,-500.0,0.00012366,2]
[400847944,1767844231805,-500.0,0.00012366,2]
[400847945,1767844231815,-500.0,0.00012366,2]
[400847946,1767844231825,-150.0,0.00012366,2]
[400847947,1767844231835,-150.0,0.00012366,2]
[400847948,1767844231845,-5.39451177,0.00012366,2]
[400847950,1767844231861,-144.60548823,0.00012366,2]
[400847951,1767844231871,-246.60525567,0.00012366,2]
[400847952,1767844231883,-260.39474433,0.00012366,2]
[400847953,1767844231894,-686.0,0.00012366,2]
[400847954,1767844231904,-500.0,0.00012366,2]
[400847955,1767844231914,-422.0,0.00012366,2]
[400847956,1767844231925,-36.74848928,0.00012366,2]
[400847957,1767844231936,-463.25151072,0.00012366,2]
[400847958,1767844231945,-1078.51533844,0.00012366,2]
[400847959,1767844231957,-425.78466156,0.00012366,2]
[400847960,1767844231966,-500.0,0.00012421,2]
[400847961,1767844231976,-150.0,0.00012421,2]
[400847962,1767844231985,-935.0,0.00012421,2]
[400847963,1767844231995,-500.0,0.00012421,2]
[400847964,1767844232004,-500.0,0.00012421,2]
[400847965,1767844232013,-500.0,0.00012421,2]
[400847966,1767844232023,-199.40044105,0.00012421,2]
[400848010,1767844237873,-661.68,0.00011597,2]
[400848011,1767844237885,-559.70892886,0.00011597,2]
[400848012,1767844237896,-500.0,0.00011597,2]
[400848013,1767844237908,-1402.02305659,0.00011597,2]
[400848017,1767844237941,-271.8,0.00011597,2]
[400848019,1767844237953,-29023.55801455,0.00011597,2]
[400848021,1767844237962,-300.59955895,0.00012421,2]
[400848023,1767844237972,-500.0,0.00012421,2]
[400848025,1767844237981,-150.0,0.00012421,2]
[400848027,1767844237991,-507.0,0.00012421,2]
[400848029,1767844238000,-686.0,0.00012421,2]
[400848031,1767844238009,-500.0,0.00012421,2]
[400848033,1767844238018,-422.0,0.00012421,2]
[400848035,1767844238027,-500.0,0.00012421,2]
[400848037,1767844238036,-2409.01573202,0.00012428,2]
[400848039,1767844238046,-500.0,0.00012476,2]
[400848041,1767844238055,-150.0,0.00012476,2]
[400848043,1767844238064,-935.0,0.00012476,2]
[400848045,1767844238074,-500.0,0.00012476,2]
[400848047,1767844238083,-464.10374945,0.00012476,2]
[400848049,1767844238093,-500.0,0.00012476,2]
[400848052,1767844238102,-500.0,0.00012476,2]
[400848054,1767844238112,-500.0,0.00012476,2]
[400848056,1767844238121,-242.66022183,0.00012476,2]
[400848058,1767844238130,-507.0,0.00012476,2]
[400848060,1767844238140,-686.0,0.00012476,2]
[400848062,1767844238149,-500.0,0.00012476,2]
[400848064,1767844238158,-422.0,0.00012476,2]
[400848066,1767844238167,-507.79708825,0.00012476,2]
[400848068,1767844238178,-500.0,0.00012476,2]
[400848070,1767844238187,-150.0,0.00012518,2]
[400848072,1767844238197,-17421.9057416,0.00012519,2]
[400848074,1767844238209,-354.22122114,0.00012528,2]
[400848076,1767844238218,-354.22122114,0.00012528,2]
[400848078,1767844238228,-500.0,0.0001253,2]
[400848080,1767844238238,-150.0,0.0001253,2]
[400848082,1767844238247,-935.0,0.0001253,2]
[400848084,1767844238261,-500.0,0.0001253,2]
[400848086,1767844238271,-500.0,0.0001253,2]
[400848088,1767844238281,-500.0,0.0001253,2]
[400848090,1767844238293,-354.24120762,0.0001253,2]
[400848092,1767844238303,-507.0,0.0001253,2]
[400848094,1767844238313,-686.0,0.0001253,2]
[400848096,1767844238322,-500.0,0.0001253,2]
[400848099,1767844238332,-422.0,0.0001253,2]
[400848101,1767844238342,-355.9895,0.00012531,2]
[400848103,1767844238351,-150.0,0.00012539,2]
[400848105,1767844238361,-150.0,0.00012544,2]
[400848107,1767844238370,-150.0,0.00012564,2]
[400848109,1767844238379,-500.0,0.00012564,2]
[400848111,1767844238389,-150.0,0.00012564,2]
[400848113,1767844238399,-150.0,0.00012564,2]
[400848115,1767844238408,-500.0,0.00012564,2]
[400848117,1767844238419,-500.0,0.00012564,2]
[400848119,1767844238428,-500.0,0.00012585,2]
[400848121,1767844238437,-150.0,0.00012585,2]
[400848122,1767844238447,-935.0,0.00012585,2]
[400848125,1767844238456,-500.0,0.00012585,2]
[400848126,1767844238466,-424.66885568,0.00012585,2]
[400848128,1767844238476,-500.0,0.00012585,2]
[400848130,1767844238485,-507.0,0.00012585,2]
[400848132,1767844238494,-686.0,0.00012585,2]
[400848135,1767844238504,-500.0,0.00012585,2]
[400848136,1767844238513,-422.0,0.00012585,2]
[400848138,1767844238523,-23411.60368293,0.00012588,2]
[400848140,1767844238532,-172.78735904,0.00012594,2]
[400848142,1767844238542,-450.49743781,0.00012594,2]
[400848144,1767844238551,-500.0,0.00012594,2]
[400848146,1767844238561,-500.0,0.00012594,2]
[400848148,1767844238570,-228.62208613,0.00012594,2]
[400848150,1767844238580,-299.99,0.00012595,2]
[400848152,1767844238589,-3175.27,0.00012595,2]
[400848154,1767844238599,-3815.75,0.00012595,2]
[400848156,1767844238608,-32076.7767,0.00012596,2]
[400848158,1767844238618,-2500.0,0.00012596,2]
[400848160,1767844238627,-6699.2591,0.00012596,2]
[400848162,1767844238638,-813.0908,0.00012596,2]
[400848164,1767844238652,-41616.36,0.00012596,2]
[400848166,1767844238661,-150.0,0.00012619,2]
[400848168,1767844238671,-500.0,0.00012619,2]
[400848170,1767844238681,-150.0,0.00012619,2]
[400848172,1767844238690,-150.0,0.00012619,2]
[400848174,1767844238700,-500.0,0.00012619,2]
[400848176,1767844238711,-500.0,0.00012619,2]
[400848178,1767844238720,-12278.84297836,0.00012628,2]
[400848180,1767844238729,-309.81,0.00012628,2]
[400848182,1767844238739,-25966.37,0.00012628,2]
[400848184,1767844238749,-9999.99,0.00012628,2]
[400848186,1767844238758,-1197.41,0.00012628,2]
[400848188,1767844238767,-4999.99,0.00012628,2]
[400848190,1767844238777,-9999.99,0.00012628,2]
[400848192,1767844238786,-9999.99,0.00012628,2]
[400848194,1767844238796,-7098.64,0.00012628,2]
[400848195,1767844238805,-3687.75,0.00012628,2]
[400848196,1767844238815,-1183.67,0.00012628,2]
[400848197,1767844238824,-17537.72,0.00012628,2]
[400848198,1767844238834,-9999.99,0.00012628,2]
[400848199,1767844238843,-150.99,0.00012628,2]
[400848200,1767844238852,-38089.95065653,0.00012628,2]
[400848201,1767844238866,-1575.97488614,0.00012628,2]
[400848202,1767844238877,-5263.42639381,0.00012628,2]
[400848203,1767844238904,-407.80144413,0.00012628,2]
[400848204,1767844238915,-4517.32582908,0.00012628,2]
[400848205,1767844238928,-1443.17406397,0.00012628,2]
[400848206,1767844238939,-10352.90275245,0.00012628,2]
[400848208,1767844238950,-3315.00397389,0.00012628,2]
[400848210,1767844238960,-332.46440329,0.00012628,2]
[400848212,1767844238973,-167.52559671,0.00012628,2]
[400848214,1767844238983,-256.0,0.00012629,2]
[400848216,1767844238992,-999.99,0.0001263,2]
[400848218,1767844239002,-2095.37,0.0001263,2]
[400848220,1767844239011,-5884.67,0.0001263,2]
[400848222,1767844239021,-7905.49,0.0001263,2]
[400848225,1767844239033,-9999.99,0.0001263,2]
[400848227,1767844239043,-150.99,0.0001263,2]
[400848229,1767844239052,-9999.99,0.0001263,2]
[400848231,1767844239062,-1465.64,0.0001263,2]
[400848233,1767844239071,-500.0,0.00012631,2]
[400848235,1767844239081,-190.425,0.00012631,2]
[400848237,1767844239091,-3432.194,0.00012631,2]
[400848239,1767844239101,-500.0,0.0001264,2]
[400848241,1767844239111,-222.12982038,0.0001264,2]
[400848243,1767844239121,-935.0,0.0001264,2]
[400848245,1767844239131,-500.0,0.0001264,2]
[400848247,1767844239140,-507.0,0.0001264,2]
[400848249,1767844239151,-686.0,0.0001264,2]
[400848251,1767844239161,-416.31193931,0.0001264,2]
[400848253,1767844239171,-422.0,0.0001264,2]
[400848255,1767844239181,-1504.3,0.0001264,2]
[400848257,1767844239191,-148540.92554408,0.0001264,2]
[400848259,1767844239203,-228.7362066,0.00012674,2]
[400848261,1767844239216,-500.0,0.00012674,2]
[400848263,1767844239227,-288.61019467,0.00012674,2]
[400848265,1767844239237,-500.0,0.00012674,2]
[400848268,1767844239247,-182.05552821,0.00012674,2]
[400848270,1767844239257,-506.22263087,0.00012674,2]
[400848272,1767844239267,-151.0,0.00012688,2]
[400848274,1767844239276,-200.0,0.00012688,2]
[400848276,1767844239287,-151.0,0.00012688,2]
[400848278,1767844239296,-151.0,0.00012688,2]
[400848280,1767844239305,-151.0,0.00012688,2]
[400848282,1767844239315,-151.0,0.00012688,2]
[400848284,1767844239324,-151.0,0.00012688,2]
[400848286,1767844239335,-151.0,0.00012688,2]
[400848287,1767844239344,-500.0,0.00012688,2]
[400848290,1767844239354,-151.0,0.00012688,2]
[400848292,1767844239363,-151.0,0.00012688,2]
[400848294,1767844239373,-151.0,0.00012688,2]
[400848296,1767844239382,-151.0,0.00012688,2]
[400848298,1767844239392,-151.0,0.00012688,2]
[400848300,1767844239401,-151.0,0.00012688,2]
[400848302,1767844239411,-151.0,0.00012688,2]
[400848304,1767844239422,-151.0,0.00012688,2]
[400848306,1767844239435,-228.24596434,0.00012688,2]
[400848308,1767844239444,-151.0,0.00012688,2]
[400848310,1767844239453,-151.0,0.00012688,2]
[400848312,1767844239463,-151.0,0.00012688,2]
[400848314,1767844239472,-151.0,0.00012688,2]
[400848317,1767844239482,-151.0,0.00012688,2]
[400848319,1767844239492,-151.0,0.00012688,2]
[400848321,1767844239501,-500.0,0.00012695,2]
[400848323,1767844239510,-935.0,0.00012695,2]
[400848325,1767844239519,-500.0,0.00012695,2]
[400848326,1767844239529,-507.0,0.00012695,2]
[400848328,1767844239539,-686.0,0.00012695,2]
[400848331,1767844239548,-422.0,0.00012695,2]
[400848333,1767844239557,-283.70698417,0.00012728,2]
[400848335,1767844239567,-500.0,0.00012728,2]
[400848381,1767844239973,-875.27078638,0.00012738,2]
[400848383,1767844239983,-482.10117033,0.0001275,2]
[400848385,1767844239993,-935.0,0.0001275,2]
[400848387,1767844240002,-500.0,0.0001275,2]
[400848389,1767844240012,-507.0,0.0001275,2]
[400848391,1767844240021,-686.0,0.0001275,2]
[400848393,1767844240030,-422.0,0.0001275,2]
[400848395,1767844240048,-500.0,0.0001275,2]
[400848397,1767844240057,-500.0,0.00012783,2]
[400848399,1767844240066,-461.60776378,0.00012804,2]
[400848401,1767844240076,-935.0,0.00012804,2]
[400848403,1767844240085,-507.0,0.00012804,2]
[400848405,1767844240094,-686.0,0.00012804,2]
[400848407,1767844240104,-422.0,0.00012804,2]
[400848409,1767844240113,-569.43,0.00012819,2]
[400848411,1767844240122,-1000.0,0.00012838,2]
[400848413,1767844240131,-33580.3823,0.00012838,2]
[400848415,1767844240141,-2585.3429,0.00012838,2]
[400848417,1767844240150,-500.0,0.00012838,2]
[400848419,1767844240160,-935.0,0.00012859,2]
[400848421,1767844240169,-507.0,0.00012859,2]
[400848423,1767844240180,-686.0,0.00012859,2]
[400848425,1767844240189,-422.0,0.00012859,2]
[400848427,1767844240199,-500.0,0.00012893,2]
[400848429,1767844240211,-935.0,0.00012914,2]
[400848431,1767844240221,-507.0,0.00012914,2]
[400848433,1767844240230,-686.0,0.00012914,2]
[400848435,1767844240240,-422.0,0.00012914,2]
[400848437,1767844240250,-1504.3,0.00012914,2]
[400848439,1767844240272,-589.01,0.0001292,2]
[400848441,1767844240293,-500.0,0.00012948,2]
[400848443,1767844240304,-420.0,0.0001296,2]
[400848445,1767844240313,-420.0,0.0001296,2]
[400848447,1767844240323,-935.0,0.00012969,2]
[400848450,1767844240333,-507.0,0.00012969,2]
[400848453,1767844240344,-686.0,0.00012969,2]
[400848455,1767844240353,-422.0,0.00012969,2]
[400848457,1767844240363,-1680.0,0.00012984,2]
[400848459,1767844240372,-250.41666969,0.00012985,2]
[400848461,1767844240381,-300.0,0.00012985,2]
[400848463,1767844240390,-250.0,0.00012985,2]
[400848465,1767844240399,-300.0,0.00012985,2]
[400848467,1767844240409,-250.0,0.00012985,2]
[400848469,1767844240419,-193.0,0.00012985,2]
[400848471,1767844240429,-500.0,0.00013002,2]
[400848473,1767844240439,-935.0,0.00013024,2]
[400848475,1767844240448,-507.0,0.00013024,2]
[400848477,1767844240458,-686.0,0.00013024,2]
[400848479,1767844240467,-422.0,0.00013024,2]
[400848481,1767844240476,-500.0,0.00013024,2]
[400848483,1767844240485,-500.0,0.00013057,2]
[400848485,1767844240494,-935.0,0.00013078,2]
[400848487,1767844240503,-507.0,0.00013078,2]
[400848489,1767844240512,-686.0,0.00013078,2]
[400848491,1767844240521,-422.0,0.00013078,2]
[400848493,1767844240530,-500.0,0.00013112,2]
[400848495,1767844240539,-17421.90574155,0.00013117,2]
[400848497,1767844240548,-935.0,0.00013133,2]
[400848499,1767844240557,-507.0,0.00013133,2]
[400848501,1767844240566,-686.0,0.00013133,2]
[400848503,1767844240575,-422.0,0.00013133,2]
[400848505,1767844240584,-500.0,0.00013167,2]
[400848507,1767844240593,-23411.60368284,0.00013178,2]
[400848509,1767844240603,-935.0,0.00013188,2]
[400848511,1767844240611,-507.0,0.00013188,2]
[400848513,1767844240620,-686.0,0.00013188,2]
[400848515,1767844240629,-422.0,0.00013188,2]
[400848517,1767844240640,-1504.3,0.00013188,2]
[400848519,1767844240651,-500.0,0.00013222,2]
[400848521,1767844240660,-626.22881488,0.00013236,2]
[400848522,1767844240669,-5629.88726913,0.00013241,2]
[400848524,1767844240680,-935.0,0.00013243,2]
[400848527,1767844240690,-507.0,0.00013243,2]
[400848529,1767844240699,-686.0,0.00013243,2]
[400848530,1767844240708,-422.0,0.00013243,2]
[400848533,1767844240718,-254.70701265,0.00013276,2]
[400848535,1767844240728,-354.22122114,0.00013295,2]
[400848537,1767844240738,-354.22122114,0.00013295,2]
[400848539,1767844240747,-935.0,0.00013298,2]
[400848541,1767844240757,-507.0,0.00013298,2]
[400848543,1767844240767,-686.0,0.00013298,2]
[400848545,1767844240776,-422.0,0.00013298,2]
[400848547,1767844240786,-500.0,0.00013298,2]